Cogmind - Beta 10.2 @@@ ROGUE MODE // 2021.07.27 @ 13:29:08 Player: CrossedViper Result: Destroyed by Tracker with Immobilizer Performance ------------- Evolutions (8) 4000 Regions Visited (30) 6000 Robots Destroyed (559) 2795 Value Destroyed (32844) 32844 Prototype IDs (37) 740 Alien Tech Used (8) 1600 Bonus (10345) 10345 TOTAL SCORE: 58324 Bonus ------- High Alert Combat Kills 2413 Follower Combat Kills 4734 Entered Garrisons 2000 Used RIF Installer 5000 Scanned by Researcher 500 Pursued by Intercept 500 Friendly Fire -4802 Cogmind --------- Core Integrity 0/1450 Matter 18/300 Energy 100/100 System Corruption 30% Temperature Cool (0) Movement Core (1650) Ox32 Location -2/Section 7 Parts ------- > --- POWER (2) -------- (None) > --- PROPULSION (5) --- (None) > --- UTILITY (12) ----- Advanced Heat Sink High-capacity Storage Unit High-capacity Storage Unit High-capacity Storage Unit Relay Coupler [NC] (3) > --- WEAPON (4) ------- (None) > --- INVENTORY (28) --- Advanced Energy Well (800) Advanced Kinecellerator Heavy Regenerative Plating Subatomic Replicator LRC Matter Compressor Gamma Rifle Sigix Quantum Sheargun Sigix Quantum Sheargun Sigix Quantum Sheargun Improved Potential Cannon Improved Potential Cannon Helical Railgun Hypervelocity Multirail Shock Bomb Launcher Rocket Array Peak State ------------ > --- POWER ------------ Quantum Reactor Improved Quantum Reactor > --- PROPULSION ------- Medium Treads Armored Heavy Treads Experimental Biometal Heavy Treads > --- UTILITY ---------- Experimental Cooling System High-capacity Storage Unit High-capacity Storage Unit High-capacity Storage Unit Advanced Salvage Targeting Computer Advanced Kinecellerator Improved Weapon Cycler Heavy Regenerative Plating EM Dispersion Field System Mapper Relay Coupler [NC] > --- WEAPON ----------- Gamma Rifle Long-range Phase Cannon Omega Cannon > --- INVENTORY -------- Biometal Heavy Treads Experimental Cooling System Advanced Energy Well Advanced Terrain Scan Processor Dimensional Node Initializer Dimensional Node Initializer Transdimensional Reconstructor Transdimensional Reconstructor Transdimensional Reconstructor High-powered Transdimensional Reconstructor Integrated Dissipator Integrated Heat Negator Integrated Reactor Core Reset Matrix Subatomic Replicator Gamma Rifle Improved Potential Cannon Improved Potential Cannon Hypervelocity Multirail Shock Bomb Launcher Rocket Array Improved Remote Datajack [Rating: 197] Favorites ----------- Power Micro Fission Core Engine Heavy Ion Engine Power Core Micro Fission Core Reactor Particle Reactor Propulsion Light Treads Treads Light Treads Leg Aluminum Leg Utility High-capacity Storage Unit Device Advanced Transmission Jammer Storage High-capacity Storage Unit Processor Advanced Terrain Scan Processor Hackware Relay Coupler [NC] Protection Improved Medium Armor Plating Artifact Matter Drive Weapon Helical Railgun Energy Gun Gamma Rifle Energy Cannon Nova Cannon Ballistic Gun Helical Railgun Ballistic Cannon Omega Cannon Launcher Missile Launcher Special Weapon Improved Remote Datajack Slashing Weapon Molecular Scythe Special Melee Weapon Datajack Build | -11 -10 -10 -9 -8 -8 -8 -8 -7 -7 -7 -7 -6 -6 -6 -6 -6 -6 -5 -5 -4 -4 -4 -4 -3 -3 -3 -3 -2 -2 -2 ------- Run | Scr Mat Min Mat Mat Gar Mat Gar Fac Gar Sto Gar Fac Was Fac Gar Fac Gar Fac Gar Fac Gar Fac Gar Res Gar Res Tes Res Qua Sec Slots Evolved 16 | . . . 2 2 . . . 2 . . . 2 . . . . . 2 . 2 . . . 2 . . . 2 . . Power 1 | . . . . . . . . . . . . . . . . . . . . . . . . 1 . . . . . . Propulsion 3 | . . . . . . . . . . . . 2 . . . . . . . . . . . . . . . 1 . . Utility 10 | . . . 2 1 . . . 2 . . . . . . . . . 2 . 2 . . . 1 . . . . . . Weapon 2 | . . . . 1 . . . . . . . . . . . . . . . . . . . . . . . 1 . . Parts Attached 632 | 6 8 6 31 11 15 15 23 26 15 37 36 4 7 12 16 1 15 4 15 18 17 16 10 19 31 93 44 11 17 53 Power 44 | 1 1 1 . 2 1 . . 1 2 3 1 . . . 1 . . . 1 . . 1 . 2 5 11 2 1 2 5 Engine 11 | 1 1 1 . 2 1 . . . 2 2 1 . . . . . . . . . . . . . . . . . . . Core 6 | . . . . . . . . 1 . 1 . . . . . . . . 1 . . 1 . . 1 1 . . . . Reactor 27 | . . . . . . . . . . . . . . . 1 . . . . . . . . 2 4 10 2 1 2 5 Propulsion 83 | 2 2 1 8 3 2 4 2 2 1 7 4 2 2 . . . 3 . 2 . 4 4 . . 5 10 3 1 2 7 Treads 82 | 2 1 1 8 3 2 4 2 2 1 7 4 2 2 . . . 3 . 2 . 4 4 . . 5 10 3 1 2 7 Leg 1 | . 1 . . . . . . . . . . . . . . . . . . . . . . . . . . . . . Wheel . | . . . . . . . . . . . . . . . . . . . . . . . . . . . . . . . Hover . | . . . . . . . . . . . . . . . . . . . . . . . . . . . . . . . Flight . | . . . . . . . . . . . . . . . . . . . . . . . . . . . . . . . Utility 254 | 1 2 3 13 1 8 2 12 13 7 15 14 1 5 8 3 1 12 4 8 8 9 6 2 7 10 33 19 2 5 20 Device 82 | . . . . . 3 . 4 6 5 6 5 . 1 . . . . . 1 1 1 . . 3 4 15 9 1 2 15 Storage 18 | 1 1 1 4 . . . . 1 . . . . 1 1 . . . . . 1 . . . . . . 3 . 3 1 Processor 14 | . 1 . 1 . 1 . . 1 . 1 . . . . . . . . 1 1 . 1 . 1 . 4 . . . 1 Hackware 64 | . . . . . . 1 . 3 1 3 4 1 . 2 3 1 12 2 3 3 7 4 1 3 3 3 3 1 . . Protection 75 | . . 2 8 1 4 1 8 2 1 5 5 . 3 5 . . . 2 3 2 1 1 1 . 3 11 4 . . 2 Artifact 1 | . . . . . . . . . . . . . . . . . . . . . . . . . . . . . . 1 Weapon 251 | 2 3 1 10 5 4 9 9 10 5 12 17 1 . 4 12 . . . 4 10 4 5 8 10 11 39 20 7 8 21 Energy Gun 31 | . . . . . 1 . 2 . 1 . 3 . . . . . . . . . . . . . 3 8 6 . 3 4 Energy Cannon 43 | . . . . . . . . . . . 1 . . 1 3 . . . . . . . 3 2 . 5 10 6 4 8 Ballistic Gun 105 | 2 3 1 8 4 1 4 6 7 2 8 9 . . 2 4 . . . 3 6 1 3 1 5 5 15 3 . . 2 Ballistic Cannon 7 | . . . . . 1 3 . . . . . . . . . . . . . . . . . . . . . . . 3 Launcher 16 | . . . 2 1 1 2 1 . 1 1 1 . . . 1 . . . . . . . 1 . 1 1 . . 1 1 Special Weapon 44 | . . . . . . . . . . 3 3 1 . 1 4 . . . 1 4 3 2 3 3 2 10 1 . . 3 Impact Weapon . | . . . . . . . . . . . . . . . . . . . . . . . . . . . . . . . Slashing Weapon 1 | . . . . . . . . . . . . . . . . . . . . . . . . . . . . 1 . . Piercing Weapon . | . . . . . . . . . . . . . . . . . . . . . . . . . . . . . . . Special Melee Weapon 4 | . . . . . . . . 3 1 . . . . . . . . . . . . . . . . . . . . . Unidentified Prototypes 36 | . . . . 1 . 1 . . . 2 . . 1 . . . . . . . . . . 2 1 4 10 2 2 10 Parts Lost 87 | . 3 . 4 1 2 . . 1 2 13 3 . . . . . . . . 1 . 1 1 1 10 13 1 . 10 20 Power 14 | . . . . . . . . . 1 1 . . . . . . . . . . . . . . 4 3 . . 1 4 Propulsion 15 | . 1 . 2 . . . . . . 4 . . . . . . . . . . . . . . 1 1 . . 1 5 Utility 30 | . . . . . . . . . . 6 3 . . . . . . . . . . 1 1 1 3 4 1 . 3 7 Weapon 28 | . 2 . 2 1 2 . . 1 1 2 . . . . . . . . . 1 . . . . 2 5 . . 5 4 Highest Loss Streak 7 | . 3 . 2 1 2 . . 1 1 4 2 . . . . . . . . 1 . 1 1 1 5 3 1 . 5 7 Average Slot Usage (%) 89 | . 99 100 98 99 98 99 96 89 91 95 97 100 94 85 85 86 88 93 92 93 96 87 75 79 83 89 77 84 84 77 Engine 3 | . 14 14 11 8 9 9 9 5 6 6 6 6 6 6 3 . . . . . . . . . . . . . . . Reactor 2 | . . . . . . . . . . . . . . . 2 6 6 5 2 . . . . 8 4 8 8 8 7 6 Treads 15 | . 27 28 21 18 18 18 18 15 15 14 15 26 20 13 13 13 17 17 17 15 17 12 10 9 11 13 9 10 11 10 Device 7 | . . . . . 6 1 4 6 5 11 14 6 4 . . . . . 1 9 9 8 5 5 10 14 15 23 16 15 Storage 15 | . 14 14 20 18 18 18 18 15 15 15 15 13 14 20 20 20 20 17 17 15 15 15 15 14 14 11 9 8 14 14 Processor 7 | . 13 1 11 9 9 9 9 13 15 11 7 6 6 6 6 6 6 5 6 5 5 5 5 6 5 10 8 4 4 2 Hackware 7 | . . . . . . 4 1 . . 2 8 6 6 9 19 20 17 17 11 11 17 14 12 13 11 10 5 9 8 7 Protection 7 | . . 12 11 17 10 12 8 6 7 9 4 13 13 9 . . . 10 12 13 8 7 5 3 5 3 8 4 3 3 Energy Gun 1 | . . . . . 3 . . 1 5 2 1 . . . . . . . . . . . . . 1 1 2 . . 2 Energy Cannon 1 | . . . . . . . . . . . . 1 . . 3 6 6 5 2 . . . 3 3 . 1 3 12 11 6 Ballistic Gun 13 | . 27 28 20 26 17 16 25 20 15 19 18 13 13 13 11 6 6 5 10 13 10 10 9 5 11 8 1 . . . Special Weapon 1 | . . . . . . . . . . . 1 4 6 5 3 6 6 5 2 . 4 4 2 3 . . . . . 1 Naked Turns . | . . . . . . . . . . . . . . . . . . . . . . . . . . . . . . . Heaviest Build 215 | 13 17 32 92 99 106 104 101 105 113 113 114 114 137 137 136 128 128 142 152 152 143 163 170 209 197 182 169 162 183 215 Greatest Support 177 | 40 40 40 40 40 40 40 40 42 42 40 40 80 140 140 140 140 140 130 130 130 130 150 150 150 150 140 150 177 177 173 Greatest Overweight (x) 35 | . 1 . 4 2 2 4 2 2 2 4 2 1 1 . . . 1 1 1 1 2 1 1 1 2 2 1 1 1 35 Average Overweight (x) 1 | . . . 1 2 2 2 2 1 2 1 2 1 . . . . . 1 1 1 1 . 1 1 . . . . . 1 Largest Inventory Capacity 28 | 6 8 10 20 20 20 20 20 20 20 20 20 20 28 28 28 28 28 28 28 28 28 28 28 28 28 28 20 20 28 28 Average Capacity 22 | 4 7 8 17 20 20 20 20 20 20 20 20 20 22 28 28 28 28 28 28 28 28 28 28 28 28 23 20 20 27 28 Most Carried 28 | 2 8 10 20 20 20 20 20 20 20 20 20 19 24 25 28 28 28 28 28 28 28 28 28 28 28 28 20 20 28 28 Average Carried 21 | . 5 8 15 19 17 19 19 18 16 19 19 17 20 23 26 27 25 26 27 24 25 25 26 26 26 21 19 18 22 25 Final Capacity 28 | 6 8 10 20 20 20 20 20 20 20 20 20 20 28 28 28 28 28 28 28 28 28 28 28 28 28 20 20 20 28 28 Final Carried 28 | . 8 10 17 20 20 20 20 14 20 20 20 17 24 23 28 27 28 27 28 24 28 24 28 26 26 20 20 19 23 18 Class Distribution -------------------- 23% | Botlord-Mutant 11% | Hauler-Mutant 9% | Scavenger-Mutant 8% | Mutant 8% | Botlord-Tank 7% | Bothacker-Mutant 7% | Botlord-Gunner 7% | Hauler-Tank 3% | Scavenger-Gunner 3% | Hauler-Skirmisher Dominant Class ---------------- Mutant | -10/Materials Mutant | -10/Mines Hauler-Mutant | -9/Materials Hauler-Tank | -8/Materials Hauler-Mutant | -8/Garrison Hauler-Tank | -8/Materials Hauler-Skirmisher | -8/Garrison Bothacker-Skirmisher | -7/Factory Bothacker-Mutant | -7/Garrison Bothacker-Tank | -7/Storage Botlord-Mutant | -7/Garrison Botlord-Mutant | -6/Factory Botlord-Mutant | -6/Waste Bothacker-Mutant | -6/Factory Botlord-Mutant | -6/Garrison Botlord-Mutant | -6/Factory Botlord-Mutant | -6/Garrison Botlord-Mutant | -5/Factory Botlord-Mutant | -5/Garrison Botlord-Tank | -4/Factory Botlord-Mutant | -4/Garrison Botlord-Mutant | -4/Factory Botlord-Mutant | -4/Garrison Botlord-Mutant | -3/Research Botlord-Tank | -3/Garrison Botlord-Gunner | -3/Research Scavenger-Mutant | -3/Testing Scavenger-Mutant | -2/Research Hauler-Tank | -2/Quarantine Scavenger-Mutant | -2/Section 7 Resources | -11 -10 -10 -9 -8 -8 -8 -8 -7 -7 -7 -7 -6 -6 -6 -6 -6 -6 -5 -5 -4 -4 -4 -4 -3 -3 -3 -3 -2 -2 -2 ----------- Run | Scr Mat Min Mat Mat Gar Mat Gar Fac Gar Sto Gar Fac Was Fac Gar Fac Gar Fac Gar Fac Gar Fac Gar Res Gar Res Tes Res Qua Sec Matter Collected 19987 | 230 400 52 1113 1052 231 793 630 547 633 1202 868 54 420 287 450 . 245 . 460 702 476 681 558 586 1185 3123 626 110 175 2098 Remotely . | . . . . . . . . . . . . . . . . . . . . . . . . . . . . . . . Salvage Created 29343 | . 572 50 1816 1309 250 910 522 575 962 1581 625 . 756 404 695 . . . 358 915 121 469 1114 814 1823 5543 1136 563 1403 4057 Parts 1479 | . 35 4 136 78 17 53 26 23 39 71 30 . 32 15 27 . . . 16 57 8 20 41 48 86 267 67 14 92 177 Haulers Intercepted 17 | . 2 . 4 2 . 2 . . . 3 . . . . . . . . . . . . . . . 1 2 . 1 . Recyclers Shooed 20 | . 5 . 1 . . 3 . . . 1 . . . 1 . . . . . . . . . 2 . 6 . . 1 . Parts Field Recycled . | . . . . . . . . . . . . . . . . . . . . . . . . . . . . . . . Retrieved Matter . | . . . . . . . . . . . . . . . . . . . . . . . . . . . . . . . Parts Self-Destructed . | . . . . . . . . . . . . . . . . . . . . . . . . . . . . . . . Prevented . | . . . . . . . . . . . . . . . . . . . . . . . . . . . . . . . Kills | -11 -10 -10 -9 -8 -8 -8 -8 -7 -7 -7 -7 -6 -6 -6 -6 -6 -6 -5 -5 -4 -4 -4 -4 -3 -3 -3 -3 -2 -2 -2 ------- Run | Scr Mat Min Mat Mat Gar Mat Gar Fac Gar Sto Gar Fac Was Fac Gar Fac Gar Fac Gar Fac Gar Fac Gar Res Gar Res Tes Res Qua Sec Combat Hostiles Destroyed 431 | . 14 1 32 23 11 19 10 10 14 22 9 . . 5 19 . . . 5 13 2 7 18 11 25 57 14 7 20 63 Guns 274 | . 14 1 28 23 5 6 10 10 10 22 9 . . 5 5 . . . 5 13 2 7 7 6 22 49 10 . . 5 Cannons 92 | . . . . . . 8 . . . . . . . . 2 . . . . . . . 3 5 . 1 2 6 16 49 AOE 50 | . . . 4 . 6 5 . . 4 . . . . . 12 . . . . . . . 8 . 2 1 2 . 4 2 Classes Destroyed 22 | . 6 . 5 . 2 . . 1 . . 1 . 2 . 1 . . . . . 1 . . . . 1 . . . 2 Worker 22 | . 1 2 4 2 . 1 . 1 . . . . . . . . . . . 1 . . . 1 . 7 . . 1 1 Builder 19 | . . . 2 . . 1 . . . . . . . 1 . . . . . . . . . 2 . 6 . . 5 2 Tunneler 3 | . 1 . 1 . . . . . . . . . . . . . . . . 1 . . . . . . . . . . Hauler 17 | . 2 . 4 2 . 2 . . . 3 . . . . . . . . . . . . . . . 1 2 . 1 . Recycler 18 | . . . 2 2 . 4 . 1 . 3 . . . 1 . . . . . 1 . . . . . 3 . . 1 . Mechanic 1 | . . . . . . . . . . . . . . . . . . . . . . . . . . . . . . 1 Operator 7 | . . . 2 . . . . . . 1 . . . 1 . . . . . . . . . . . 1 1 . . 1 Watcher 17 | . 1 . 4 3 1 2 . . . 1 . . . . . . . . . . 1 . . . . 3 . . . 1 Swarmer 53 | . 6 1 3 6 7 6 . 3 . . 4 . . . 7 . . . . . . . . 1 . 4 . . 5 . Saboteur 2 | . . . . . . . . . . . . . . . . . . . . . 1 . . . . . . . . 1 Grunt 183 | . 8 . 20 12 1 6 5 4 7 16 3 . . 3 6 . . . 4 2 . . 13 3 17 19 6 4 2 22 Brawler 9 | . . . . . 1 1 . . . . 1 . . . . . . . 1 . . . 1 . 1 3 . . . . Duelist 8 | . . . 1 . . . . . 2 . 1 . . . 1 . . . . . . . . . 1 1 . . . 1 Protector 1 | . . . . . . . . . . . . . . . . . . . . . . . . . . 1 . . . . Researcher 3 | . . . . . . . . . . . . . . . . . . . . . . . . . . . . . . 3 Sentry 65 | . . . 8 5 . 5 3 2 7 4 1 . . . 3 . . . . 1 1 . 1 . 4 9 . 3 2 6 Specialist 3 | . . . . . . . . . . . . . . . 2 . . . . . . . 1 . . . . . . . Hunter 20 | . . . . . 2 1 2 . . 1 . . . 1 . . . . . . . . 3 2 . 2 . . 4 2 Programmer 81 | . . . . . . . . 2 . 2 . . . 1 . . . . 1 10 . 5 . 4 1 18 8 . 7 22 Behemoth 8 | . . . . . . . . . . . 1 . . . . . . . . . . 2 . 1 1 2 . . . 1 S7 Guard 1 | . . . . . . . . . . . . . . . . . . . . . . . . . . . . . . 1 Tracker 3 | . . . . . . . . . . . . . . . . . . . . . . . . . . . . . . 3 Executioner 4 | . . . . . . . . . . . . . . . . . . . . . . . . . . . . . . 4 Surgeon 1 | . . . . . . . . . . . . . 1 . . . . . . . . . . . . . . . . . Wasp 1 | . . . . . . . . . . . . . 1 . . . . . . . . . . . . . . . . . Thug 6 | . . . . . . . . . . . . . 6 . . . . . . . . . . . . . . . . . Savage 1 | . . . . . . . . . . . . . 1 . . . . . . . . . . . . . . . . . Martyr 2 | . . . . . . . . . . . . . 2 . . . . . . . . . . . . . . . . . Best Kill Streak 13 | . 3 1 7 8 6 6 3 4 5 8 5 . . 3 13 . . . 3 3 1 2 12 3 5 6 4 2 9 7 Combat Bots Only 13 | . 3 1 5 6 6 3 3 4 5 7 5 . . 3 13 . . . 3 3 1 2 12 3 5 4 4 2 5 6 Max Kills in Single Turn 6 | . 2 1 2 2 3 4 1 2 3 2 2 . 1 1 5 . . . 2 2 1 1 6 2 2 4 1 1 5 2 Gunslinging 1 | . 1 . . 1 . . . . . 1 1 . . . . . . . 1 . . . 1 . 1 1 . . . . Exploded 6 | . . . 2 . 3 3 . . 3 . . . . . 5 . . . . . . . 6 . 1 1 1 . 2 2 Melee . | . . . . . . . . . . . . . . . . . . . . . . . . . . . . . . . Uniques/NPCs Destroyed . | . . . . . . . . . . . . . . . . . . . . . . . . . . . . . . . Combat | -11 -10 -10 -9 -8 -8 -8 -8 -7 -7 -7 -7 -6 -6 -6 -6 -6 -6 -5 -5 -4 -4 -4 -4 -3 -3 -3 -3 -2 -2 -2 -------- Run | Scr Mat Min Mat Mat Gar Mat Gar Fac Gar Sto Gar Fac Was Fac Gar Fac Gar Fac Gar Fac Gar Fac Gar Res Gar Res Tes Res Qua Sec Damage Taken 45955 | . 621 58 1555 1007 441 885 629 1297 882 2705 720 . . 438 1051 67 257 97 778 1190 307 782 1678 2066 3019 7052 1025 724 3189 11435 Core 3888 | . 88 25 323 124 30 96 16 105 139 259 45 . . 37 127 22 41 . 112 78 36 21 86 169 192 564 24 48 195 886 Absorbed by Shields 329 | . . . . . . . . . . . . . . . . . . . 35 . . . . 80 214 . . . . . Reduced by Siege Mode 1118 | . . . . . . . . . . . . . . . . . . . . 28 . . 41 13 128 271 36 7 123 471 Core Remaining (%) 57 | 100 . 54 19 . . . 51 . . . 21 . . . . . 73 . 88 . . . 80 . . . 27 . . . Volleys Fired 1713 | . 57 1 129 85 21 63 37 31 41 98 62 5 34 27 44 1 20 3 31 42 31 43 57 67 60 222 68 25 38 270 Largest 4 | . 2 2 2 3 3 3 3 3 3 3 3 2 2 3 3 1 1 1 3 3 3 3 3 3 3 3 3 4 3 4 Hottest 480 | . 40 40 46 69 142 132 69 101 136 136 154 56 56 98 154 30 98 30 123 105 99 99 179 264 225 244 326 452 339 480 Shots Fired 3604 | . 113 2 251 251 43 135 98 93 103 239 130 7 64 44 77 1 20 3 61 100 45 80 121 121 149 501 126 55 102 469 Gun 2643 | . 113 2 245 250 34 85 97 93 100 229 110 4 60 31 36 . . . 44 90 31 60 75 62 139 424 52 . . 177 Cannon 705 | . . . . . 6 46 . . . . 7 . . 1 31 . 4 . 8 . . . 31 34 . 39 66 55 100 277 Launcher 49 | . . . 6 1 3 4 1 . 3 . 1 . . . 3 . . . . . . . 2 . 4 9 . . 2 10 Special 207 | . . . . . . . . . . 10 12 3 4 12 7 1 16 3 9 10 14 20 13 25 6 29 8 . . 5 Kinetic 2399 | . 113 2 245 250 30 131 94 90 95 208 92 4 60 31 36 . . . 44 90 31 60 75 62 127 329 10 . . 90 Thermal 669 | . . . . . 10 . . . 5 21 16 . . 1 31 . 4 . 8 . . . 31 34 . 55 103 55 100 195 Explosive 27 | . . . 6 1 3 4 1 . . . 1 . . . 3 . . . . . . . 2 . 4 . . . 2 . Electromagnetic 165 | . . . . . . . 3 3 3 . 9 . . . . . . . . . . . . . 12 88 5 . . 42 Slashing 137 | . . . . . . . . . . . . . . . . . . . . . . . . . . . . . . 137 Robot Hit Streak 47 | . 19 . 24 22 16 11 17 12 19 18 14 12 19 13 21 5 7 10 21 26 5 14 22 23 29 33 37 21 34 47 Robot Miss Streak 16 | . 2 1 4 3 4 10 4 8 5 16 2 3 7 6 4 . 1 . 1 2 3 2 5 2 3 4 6 1 3 3 Penetration Max 2 | . . . . . . . . 1 1 1 . . . . . . . . 1 2 . 1 1 2 1 2 . . . 1 Secondary Targets 38 | . 2 . . 2 1 . . 4 1 3 1 . . . . . . . 1 1 . 1 1 . 10 9 . . . 1 Max Gunslinging Chain 1 | . 1 . . 1 1 . . 1 1 1 1 . . . . . . . 1 1 . 1 1 . 1 1 . . . 1 Shots Hit Robots 2635 | . 75 . 187 158 31 105 67 81 88 171 88 7 59 35 52 1 14 3 42 72 20 65 79 90 111 367 73 41 74 379 Core Hits 1377 | . 28 3 82 58 22 75 24 52 62 122 43 3 88 36 63 . . . 16 30 7 17 75 25 74 168 27 15 51 111 Critical Hits 85 | . 2 . 1 . . 1 1 1 2 1 1 . . . 1 . . . . 3 1 8 5 3 7 22 3 1 4 17 Critical Kills 32 | . . . . . . . . . . 1 1 . . . 1 . . . . 2 . 2 3 1 3 7 2 . 3 6 Critical Parts Destroyed 47 | . 2 . 1 . . 1 1 1 2 . . . . . . . . . . 1 1 5 2 2 4 15 1 1 1 6 Melee Attacks 15 | . . . . . . . . 9 2 . . . . . . . . . . . . . . . . . . . 4 . Impact . | . . . . . . . . . . . . . . . . . . . . . . . . . . . . . . . Slashing 4 | . . . . . . . . . . . . . . . . . . . . . . . . . . . . . 4 . Piercing . | . . . . . . . . . . . . . . . . . . . . . . . . . . . . . . . Sneak Attacks 4 | . . . . . . . . 3 . . . . . . . . . . . . . . . . . . . . 1 . Combat Hostiles . | . . . . . . . . . . . . . . . . . . . . . . . . . . . . . . . Follow-up Attacks . | . . . . . . . . . . . . . . . . . . . . . . . . . . . . . . . Damage Inflicted 86599 | . 904 64 3111 2348 1066 2421 929 1602 2113 3353 1658 104 1802 625 2158 35 . . 1005 2037 277 1417 3210 2647 4259 13870 4006 1895 4635 23048 Guns 49527 | . 904 21 2580 2304 373 1004 929 1590 1858 3107 1366 86 1802 568 602 . . . 933 1984 273 1351 885 1779 3384 12044 1453 . . 6347 Cannons 26451 | . . . . . 41 710 . . . . 240 . . . 564 . . . 72 . . . 818 823 . 985 1979 1796 3408 15015 Explosions 9818 | . . . 523 . 652 692 . . 255 223 52 . . . 992 . . . . . . . 1507 . 875 749 574 99 1056 1569 Melee 171 | . . . . . . . . . . . . . . . . . . . . . . . . . . . . . 171 . Ramming 632 | . . 43 8 44 . 15 . 12 . 23 . 18 . 57 . 35 . . . 53 4 66 . 45 . 92 . . . 117 Kinetic 48363 | . 904 21 2580 2304 241 1714 929 1570 1784 2612 1151 86 1802 568 602 . . . 933 1984 273 1351 885 1779 3177 9354 89 . . 9670 Thermal 21958 | . . . . . 173 . . . 169 495 398 . . . 564 . . . 72 . . . 818 823 . 2177 3822 1895 3946 6606 Explosive 6133 | . . . 523 . 652 692 . . . 223 52 . . . 992 . . . . . . . 1507 . 875 99 . . 518 . Electromagnetic 3682 | . . . . . . . . 20 160 . 57 . . . . . . . . . . . . . 207 2148 95 . . 995 Impact . | . . . . . . . . . . . . . . . . . . . . . . . . . . . . . . . Slashing 5831 | . . . . . . . . . . . . . . . . . . . . . . . . . . . . . 171 5660 Piercing . | . . . . . . . . . . . . . . . . . . . . . . . . . . . . . . . Highest Corruption 37 | . . . . . . . . 1 1 6 6 . . . . . . . 1 9 9 9 9 3 4 30 37 . 2 30 Average Corruption 9 | . . . . . . . . 1 1 5 6 . . . . . . . 1 6 9 9 9 1 3 14 32 . 1 5 Corruption Purged 7 | . . . . . . . . . . . . . . . . . . . . . . . . . . 7 . . . . Effects 839 | . . . . . . . . 1 7 52 42 . . . . . . . 1 47 64 51 48 4 34 236 137 . 2 113 Message Errors 165 | . . . . . . . . . 4 9 7 . . . . . . . 1 10 16 16 10 1 12 32 20 . 1 26 Matter Fused 137 | . . . . . . . . . . 11 8 . . . . . . . . 13 15 12 11 . 5 41 12 . . 9 Heat Flow Errors 59 | . . . . . . . . . . 5 6 . . . . . . . . 3 3 4 3 . 6 16 7 . . 6 Energy Discharges 67 | . . . . . . . . . 2 3 4 . . . . . . . . 7 9 2 7 1 1 9 14 . . 8 Parts Rejected 10 | . . . . . . . . . . 2 . . . . . . . . . . 1 1 . . 1 4 . . . 1 Data Loss (minor) 62 | . . . . . . . . 1 1 1 3 . . . . . . . . 4 7 7 5 . 2 10 7 . 1 13 Data Loss (major) 29 | . . . . . . . . . . 2 3 . . . . . . . . 1 4 2 3 . . 8 4 . . 2 Misfires 22 | . . . . . . . . . . . 2 . . . . . . . . 2 . 1 1 . . 10 5 . . 1 Alerts 4 | . . . . . . . . . . . . . . . . . . . . . . . . . . 1 3 . . . Misdirections 34 | . . . . . . . . . . . . . . . . . . . . . . . . . . 16 15 . . 3 Targeting Errors 215 | . . . . . . . . . . 18 7 . . . . . . . . 5 8 5 6 1 7 78 40 . . 40 Weapon Failures 35 | . . . . . . . . . . 1 2 . . . . . . . . 2 1 1 2 1 . 11 10 . . 4 Overload Shots . | . . . . . . . . . . . . . . . . . . . . . . . . . . . . . . . Overflow Damage 3318 | . . . 12 . 24 61 . . . . 3 . . 21 1 10 . . . . . 4 . 34 16 68 389 21 242 2412 Projectiles 2824 | . . . . . 2 . . . . . . . . . 1 . . . . . . . . 34 . 49 311 21 65 2341 Explosions 358 | . . . 12 . 22 61 . . . . 3 . . . . . . . . . . . . . 16 19 78 . 76 71 Melee 136 | . . . . . . . . . . . . . . 21 . 10 . . . . . 4 . . . . . . 101 . Knockbacks 62 | . . 1 . . 1 13 . 1 . . . . . 1 . . . . . . . . . 2 . . . . . 43 Impact 7 | . . 1 . . . . . 1 . . . . . 1 . . . . . . . . . 2 . . . . . 2 Kinetic 43 | . . . . . 1 13 . . . . . . . . . . . . . . . . . . . . . . . 29 Secondary 12 | . . . . . . . . . . . . . . . . . . . . . . . . . . . . . . 12 Self-Inflicted Damage 954 | . . . 153 5 . 20 . . . 179 104 . . . 20 . . . . . . . 38 . 204 60 31 . 28 112 Shots 34 | . . . 3 1 . 1 . . . 3 5 . . . 1 . . . . . . . 2 . 7 3 1 . 1 6 Rammed 56 | . . 7 3 4 . 3 . 2 . 5 . 1 . 1 . 1 . . . 3 2 5 . 2 . 8 . . . 9 Targets Rammed 61 | . . 8 4 4 . 3 . 2 . 5 . 1 . 2 . 1 . . . 3 2 5 . 3 . 8 . . . 10 Kicked . | . . . . . . . . . . . . . . . . . . . . . . . . . . . . . . . Crushed 5 | . . 1 1 . . . . . . . . . . 1 . . . . . . . . . 1 . . . . . 1 Highest Temperature 590 | . 9 . 87 256 335 177 192 137 339 397 248 . . 60 393 2 42 3 130 172 234 239 205 237 232 590 325 247 182 429 Average Temperature 86 | . 3 . 17 74 166 39 47 39 112 96 74 . . 19 115 2 13 3 37 71 107 114 59 74 75 119 101 126 78 100 Received Heat Transfer 7353 | . 213 . 522 486 18 225 180 276 273 933 174 . . 120 312 18 57 9 151 84 60 60 186 267 626 924 222 135 108 714 Effects 31 | . . . . 1 4 . . . 1 . 3 . . . 1 . . . . . . . . . 1 15 2 2 . 1 Shutdowns 6 | . . . . . . . . . 1 . . . . . 1 . . . . . . . . . . 3 . . . 1 Energy Bleed 5 | . . . . . 1 . . . . . . . . . . . . . . . . . . . 1 1 2 . . . Interference 14 | . . . . 1 2 . . . . . 3 . . . . . . . . . . . . . . 6 . 2 . . Matter Decay 2 | . . . . . 1 . . . . . . . . . . . . . . . . . . . . 1 . . . . Short Circuit 1 | . . . . . . . . . . . . . . . . . . . . . . . . . . 1 . . . . Damage (major) 3 | . . . . . . . . . . . . . . . . . . . . . . . . . . 3 . . . . Siege Activations 66 | . . . . . . . . . . . . . . . . . . . 1 6 . . 2 1 5 15 4 3 5 24 Total Turns 1152 | . . . . . . . . . . . . . . . . . . . 12 61 . . 32 35 65 290 87 35 123 412 Longest Duration 82 | . . . . . . . . . . . . . . . . . . . 12 17 . . 29 35 29 43 39 26 47 82 Robots Corrupted 14 | . . . . . . . . . . . . . . . . . . . . . . . . . 1 6 . . . 7 Combat Hostiles 14 | . . . . . . . . . . . . . . . . . . . . . . . . . 1 6 . . . 7 Parts Fried 31 | . . . . . . . . . . . . . . 1 . . . . . . . . . . 1 19 . . . 10 Impact Corruptions 10 | . . . . . . . . . . . . . . 1 . 1 . . . . . 1 . . . . . . . 7 Robots Melted 1 | . . . . . . . . . . . . . . . . . . . . . . . . . . . . 1 . . Combat Hostiles 1 | . . . . . . . . . . . . . . . . . . . . . . . . . . . . 1 . . Parts Melted 74 | . . . . . . . . 1 . 1 . . . . 7 . . . . 1 . . 2 . . 22 3 4 1 32 Heat Transferred 19982 | . . . . . 296 . . . 275 1100 634 . . . 592 . . . 74 . . . 739 703 . 2618 2942 1464 3250 5295 Parts Sabotaged . | . . . . . . . . . . . . . . . . . . . . . . . . . . . . . . . Parts Stolen . | . . . . . . . . . . . . . . . . . . . . . . . . . . . . . . . Parts Stripped . | . . . . . . . . . . . . . . . . . . . . . . . . . . . . . . . Power Chain Reactions 4 | . . . . . . . . . 1 . . . . . . . . . . . . . . . . 1 . . . 2 Missiles Intercepted . | . . . . . . . . . . . . . . . . . . . . . . . . . . . . . . . Alert | -11 -10 -10 -9 -8 -8 -8 -8 -7 -7 -7 -7 -6 -6 -6 -6 -6 -6 -5 -5 -4 -4 -4 -4 -3 -3 -3 -3 -2 -2 -2 ------- Run | Scr Mat Min Mat Mat Gar Mat Gar Fac Gar Sto Gar Fac Was Fac Gar Fac Gar Fac Gar Fac Gar Fac Gar Res Gar Res Tes Res Qua Sec Peak Influence 1156 | . 245 30 358 348 546 703 466 355 445 353 499 289 106 113 509 289 421 254 461 241 359 396 440 460 617 871 321 334 370 1156 Initial 346 | . . 10 11 46 146 265 141 244 21 216 213 261 94 . . 266 202 220 177 241 71 188 25 247 105 346 210 127 136 159 Average 270 | . 77 9 208 148 284 340 310 131 293 196 421 273 45 37 287 275 324 219 340 60 243 185 248 214 374 395 210 207 195 621 Maximum Alert Level 4 | . 1 . 1 1 2 3 2 1 2 1 2 1 . . 2 1 2 1 2 1 1 1 2 2 2 3 1 1 1 4 Low Security (%) 37 | 100 88 100 38 64 41 27 25 59 10 38 . . 100 100 34 . . 8 9 96 18 64 31 39 27 9 34 32 50 7 Level 1 43 | . 11 . 61 35 22 30 46 40 78 61 27 100 . . 25 100 89 91 81 3 81 35 52 56 25 56 65 67 49 26 Level 2 14 | . . . . . 35 40 28 . 10 . 72 . . . 40 . 10 . 8 . . . 15 4 47 26 . . . 21 Level 3 4 | . . . . . . 1 . . . . . . . . . . . . . . . . . . . 8 . . . 40 Level 4 . | . . . . . . . . . . . . . . . . . . . . . . . . . . . . . . 4 Level 5 . | . . . . . . . . . . . . . . . . . . . . . . . . . . . . . . . High Security . | . . . . . . . . . . . . . . . . . . . . . . . . . . . . . . . Max Security . | . . . . . . . . . . . . . . . . . . . . . . . . . . . . . . . Squads Dispatched 100 | . 3 1 5 4 . 1 . 5 . 8 . 1 . 2 . . . 2 . 2 . 8 . 7 . 15 4 1 6 25 Investigation 17 | . 2 1 3 3 . 1 . . . . . . . . . . . 1 . . . 2 . . . 1 1 . . 2 Extermination 33 | . . . . . . . . 2 . 1 . . . 1 . . . . . 2 . 2 . 4 . 8 2 1 2 8 Reinforcement 32 | . 1 . 2 . . . . 2 . 5 . 1 . 1 . . . . . . . 4 . 2 . 5 1 . 1 7 Assault 4 | . . . . . . . . . . . . . . . . . . . . . . . . . . 1 . . . 3 Garrison 9 | . . . . 1 . . . 1 . 2 . . . . . . . 1 . . . . . 1 . . . . 3 . Intercept 5 | . . . . . . . . . . . . . . . . . . . . . . . . . . . . . . 5 Construction Impeded 9 | . . . 1 . . . . . . 1 . . . 1 . . . . . . . . . 2 . 3 . . . 1 Haulers Reinforced 5 | . . . . . . . . . . 3 . 1 . . . . . . . . . . . . . 1 . . . . Alert ID Control Effect 37 | . . . . . . . . . . . . . . . . . . . . . . . . . 1 31 5 . . . Stealth | -11 -10 -10 -9 -8 -8 -8 -8 -7 -7 -7 -7 -6 -6 -6 -6 -6 -6 -5 -5 -4 -4 -4 -4 -3 -3 -3 -3 -2 -2 -2 --------- Run | Scr Mat Min Mat Mat Gar Mat Gar Fac Gar Sto Gar Fac Was Fac Gar Fac Gar Fac Gar Fac Gar Fac Gar Res Gar Res Tes Res Qua Sec Distress Signals 28 | . 3 . 2 6 . 1 . 2 . 3 . 1 . . . . . . . 1 . 1 2 . . . 1 . 1 4 Communications Jammed 278 | . . . . . . . . . . . . . . . . . . . . 37 59 1 . . . 96 68 2 15 . Distress Signals 278 | . . . . . . . . . . . . . . . . . . . . 37 59 1 . . . 96 68 2 15 . Times Spotted 923 | . 25 1 51 42 17 30 10 24 23 41 22 3 3 18 28 1 29 5 28 21 27 41 33 61 31 112 31 12 30 123 Peak Tracking Total 14 | . 5 1 5 6 7 4 4 4 9 6 5 2 1 4 7 1 8 4 5 3 4 6 14 7 5 7 4 5 6 9 Tactical Retreats 39 | . 2 . 1 3 6 1 . 1 . 3 1 . . 1 . . . . . 1 1 . 2 . 1 7 . 1 3 4 Traps | -11 -10 -10 -9 -8 -8 -8 -8 -7 -7 -7 -7 -6 -6 -6 -6 -6 -6 -5 -5 -4 -4 -4 -4 -3 -3 -3 -3 -2 -2 -2 ------- Run | Scr Mat Min Mat Mat Gar Mat Gar Fac Gar Sto Gar Fac Was Fac Gar Fac Gar Fac Gar Fac Gar Fac Gar Res Gar Res Tes Res Qua Sec Traps Triggered 79 | . 2 1 4 1 4 1 5 . 3 3 4 1 . 3 1 . . 1 7 . 14 1 8 . 9 3 2 . 1 . Indirectly . | . . . . . . . . . . . . . . . . . . . . . . . . . . . . . . . Trap Hack Attempts . | . . . . . . . . . . . . . . . . . . . . . . . . . . . . . . . Triggered . | . . . . . . . . . . . . . . . . . . . . . . . . . . . . . . . Disarmed . | . . . . . . . . . . . . . . . . . . . . . . . . . . . . . . . Reprogrammed . | . . . . . . . . . . . . . . . . . . . . . . . . . . . . . . . Reused . | . . . . . . . . . . . . . . . . . . . . . . . . . . . . . . . Traps Extracted . | . . . . . . . . . . . . . . . . . . . . . . . . . . . . . . . Installed . | . . . . . . . . . . . . . . . . . . . . . . . . . . . . . . . Triggered . | . . . . . . . . . . . . . . . . . . . . . . . . . . . . . . . Machines | -11 -10 -10 -9 -8 -8 -8 -8 -7 -7 -7 -7 -6 -6 -6 -6 -6 -6 -5 -5 -4 -4 -4 -4 -3 -3 -3 -3 -2 -2 -2 ---------- Run | Scr Mat Min Mat Mat Gar Mat Gar Fac Gar Sto Gar Fac Was Fac Gar Fac Gar Fac Gar Fac Gar Fac Gar Res Gar Res Tes Res Qua Sec Machines Disabled 108 | . . . 5 1 2 9 2 . 2 6 2 . . 1 4 . 4 . 4 1 4 3 3 . 4 14 11 1 3 22 Max in Single Turn 4 | . . . 2 1 1 2 1 . 1 2 1 . . . 1 . 1 . 1 . 1 1 1 . 1 1 1 1 1 4 Garrison Access 5 | . . . . . . . . . . . . . . . . . . . . . . . . . . 3 1 . . 1 Garrison Relay 29 | . . . . . 1 . 2 . 2 . 2 . . . 3 . 4 . 3 . 4 . 4 . 4 . . . . . Machines Sabotaged . | . . . . . . . . . . . . . . . . . . . . . . . . . . . . . . . Garrisons Compromised . | . . . . . . . . . . . . . . . . . . . . . . . . . . . . . . . Overloaded Fab Kills . | . . . . . . . . . . . . . . . . . . . . . . . . . . . . . . . Fab Network Shutdowns . | . . . . . . . . . . . . . . . . . . . . . . . . . . . . . . . Hacking | -11 -10 -10 -9 -8 -8 -8 -8 -7 -7 -7 -7 -6 -6 -6 -6 -6 -6 -5 -5 -4 -4 -4 -4 -3 -3 -3 -3 -2 -2 -2 --------- Run | Scr Mat Min Mat Mat Gar Mat Gar Fac Gar Sto Gar Fac Was Fac Gar Fac Gar Fac Gar Fac Gar Fac Gar Res Gar Res Tes Res Qua Sec Machines Accessed 87 | . 6 2 12 7 . 8 . 6 . 4 . . . 4 . 2 . 1 . 7 . 4 . 2 . 8 3 1 1 9 Terminals 59 | . 5 . 10 5 . 7 . 4 . 3 . . . 3 . 1 . . . 5 . 3 . 1 . 4 1 1 1 5 Fabricators . | . . . . . . . . . . . . . . . . . . . . . . . . . . . . . . . Repair Stations 6 | . . . 2 1 . . . . . . . . . . . . . . . 1 . . . . . 1 1 . . . Recycling Units 2 | . 1 . . . . . . 1 . . . . . . . . . . . . . . . . . . . . . . Scanalyzers 3 | . . . . . . . . . . . . . . . . . . . . . . . . . . . . . . 3 Garrison Access 15 | . . . . 1 . 1 . 1 . 1 . . . 1 . 1 . 1 . 1 . 1 . 1 . 3 1 . . 1 Total Hacks 189 | . 18 2 29 20 . 21 . 10 . 4 . . . 9 . 3 . 1 . 14 . 7 . 3 . 18 8 2 1 19 Successful 101 | . 11 2 14 10 . 11 . 6 . 3 . . . 2 . 2 . 1 . 4 . 3 . 3 . 9 6 1 . 13 Failed 88 | . 7 . 15 10 . 10 . 4 . 1 . . . 7 . 1 . . . 10 . 4 . . . 9 2 1 1 6 Catastrophic 23 | . 1 . 5 4 . . . 1 . 1 . . . 1 . . . . . 2 . 2 . . . 4 1 1 . . Database Lockouts . | . . . . . . . . . . . . . . . . . . . . . . . . . . . . . . . Manual 102 | . 15 . 16 10 . 20 . 7 . 1 . . . 5 . 2 . . . 4 . 6 . 2 . 7 1 2 1 3 Terminals 137 | . 17 . 25 17 . 20 . 8 . 3 . . . 8 . 2 . . . 10 . 6 . 1 . 9 1 2 1 7 Fabricators . | . . . . . . . . . . . . . . . . . . . . . . . . . . . . . . . Repair Stations 14 | . . . 4 2 . . . . . . . . . . . . . . . 1 . . . . . 2 5 . . . Recycling Units 2 | . 1 . . . . . . 1 . . . . . . . . . . . . . . . . . . . . . . Scanalyzers 10 | . . . . . . . . . . . . . . . . . . . . . . . . . . . . . . 10 Garrison Access 24 | . . . . 1 . 1 . 1 . 1 . . . 1 . 1 . 1 . 3 . 1 . 2 . 7 2 . . 2 Terminal Hacks 46 | . 8 2 6 5 . 6 . 1 . 2 . . . 1 . . . . . 2 . 1 . 1 . 5 1 1 . 4 Part Schematic 1 | . 1 . . . . . . . . . . . . . . . . . . . . . . . . . . . . . Robot Analysis 2 | . 2 . . . . . . . . . . . . . . . . . . . . . . . . . . . . . Open Door 8 | . . 2 . . . . . . . 2 . . . . . . . . . . . . . . . . . . . 4 Branch Access Points 6 | . 1 . 1 1 . . . . . . . . . . . . . . . . . . . 1 . 1 . 1 . . Emergency Access Points 2 | . . . . 1 . . . . . . . . . . . . . . . . . . . . . . 1 . . . Terminal Index 5 | . . . 1 1 . 1 . . . . . . . 1 . . . . . . . 1 . . . . . . . . Garrison Index 1 | . . . . . . 1 . . . . . . . . . . . . . . . . . . . . . . . . Alert Level 1 | . . . . 1 . . . . . . . . . . . . . . . . . . . . . . . . . . Unreport Threat 14 | . 2 . 4 1 . 4 . . . . . . . . . . . . . 1 . . . . . 2 . . . . Locate Traps 2 | . . . . . . . . 1 . . . . . . . . . . . . . . . . . 1 . . . . Hauler Manifests 2 | . 2 . . . . . . . . . . . . . . . . . . . . . . . . . . . . . Zone Layout 2 | . . . . . . . . . . . . . . . . . . . . 1 . . . . . 1 . . . . Fabricator Hacks . | . . . . . . . . . . . . . . . . . . . . . . . . . . . . . . . Repair Station Hacks 11 | . . . 4 2 . . . . . . . . . . . . . . . . . . . . . 1 4 . . . Scan Component 6 | . . . 2 1 . . . . . . . . . . . . . . . . . . . . . 1 2 . . . Repair 5 | . . . 2 1 . . . . . . . . . . . . . . . . . . . . . . 2 . . . Recycling Unit Hacks 1 | . . . . . . . . 1 . . . . . . . . . . . . . . . . . . . . . . Retrieve Components 1 | . . . . . . . . 1 . . . . . . . . . . . . . . . . . . . . . . Scanalyzer 8 | . . . . . . . . . . . . . . . . . . . . . . . . . . . . . . 8 Insert Component 8 | . . . . . . . . . . . . . . . . . . . . . . . . . . . . . . 8 Garrison Access Hacks 15 | . . . . 1 . 1 . 1 . 1 . . . 1 . 1 . 1 . 1 . 1 . 1 . 3 1 . . 1 Unlock Access 10 | . . . . 1 . 1 . 1 . 1 . . . 1 . 1 . 1 . 1 . 1 . 1 . . . . . . Seal Access 5 | . . . . . . . . . . . . . . . . . . . . . . . . . . 3 1 . . 1 Unauthorized Hacks 20 | . 3 . 4 2 . 4 . 3 . . . . . . . 1 . . . 1 . 1 . 1 . . . . . . Terminals 18 | . 2 . 4 2 . 4 . 3 . . . . . . . 1 . . . 1 . 1 . . . . . . . . Track 2 | . 1 . 1 . . . . . . . . . . . . . . . . . . . . . . . . . . . Assimilate 3 | . . . . . . 2 . 1 . . . . . . . . . . . . . . . . . . . . . . Botnet 11 | . 1 . 3 2 . 1 . 2 . . . . . . . 1 . . . 1 . . . . . . . . . . Operators 2 | . . . . . . 1 . . . . . . . . . . . . . . . 1 . . . . . . . . Fabricators . | . . . . . . . . . . . . . . . . . . . . . . . . . . . . . . . Repair Stations . | . . . . . . . . . . . . . . . . . . . . . . . . . . . . . . . Recycling Units 1 | . 1 . . . . . . . . . . . . . . . . . . . . . . . . . . . . . Tunnel 1 | . 1 . . . . . . . . . . . . . . . . . . . . . . . . . . . . . Scanalyzers . | . . . . . . . . . . . . . . . . . . . . . . . . . . . . . . . Garrison Access 1 | . . . . . . . . . . . . . . . . . . . . . . . . 1 . . . . . . Reprogram 1 | . . . . . . . . . . . . . . . . . . . . . . . . 1 . . . . . . Data Cores Recovered 2 | . . . . . . . . . . . . . . 1 . . . . . . . . . . . . . . . 1 Used 2 | . . . . . . . . . . . . . . 1 . . . . . . . . . . . . . . . 1 Hacking Detections 67 | . 5 . 10 6 . 7 . 5 . 2 . . . 3 . 1 . 1 . 7 . 4 . 1 . 4 3 1 1 6 Full Trace Events 11 | . 1 . 3 2 . 1 . . . . . . . . . . . . . . . 1 . . . 1 . . . 2 Feedback Events . | . . . . . . . . . . . . . . . . . . . . . . . . . . . . . . . Feedback Blocked . | . . . . . . . . . . . . . . . . . . . . . . . . . . . . . . . Robot Schematics Acquired . | . . . . . . . . . . . . . . . . . . . . . . . . . . . . . . . Robots Built . | . . . . . . . . . . . . . . . . . . . . . . . . . . . . . . . Matter . | . . . . . . . . . . . . . . . . . . . . . . . . . . . . . . . Time . | . . . . . . . . . . . . . . . . . . . . . . . . . . . . . . . Total Robot Build Rating . | . . . . . . . . . . . . . . . . . . . . . . . . . . . . . . . Part Schematics Acquired 1 | . 1 . . . . . . . . . . . . . . . . . . . . . . . . . . . . . Parts Built . | . . . . . . . . . . . . . . . . . . . . . . . . . . . . . . . Matter . | . . . . . . . . . . . . . . . . . . . . . . . . . . . . . . . Time . | . . . . . . . . . . . . . . . . . . . . . . . . . . . . . . . Total Part Build Rating . | . . . . . . . . . . . . . . . . . . . . . . . . . . . . . . . Parts Repaired 5 | . . . 2 1 . . . . . . . . . . . . . . . . . . . . . . 2 . . . Time 196 | . . . 76 38 . . . . . . . . . . . . . . . . . . . . . . 82 . . . Parts Recycled . | . . . . . . . . . . . . . . . . . . . . . . . . . . . . . . . Recycled Matter . | . . . . . . . . . . . . . . . . . . . . . . . . . . . . . . . Retrieved Matter . | . . . . . . . . . . . . . . . . . . . . . . . . . . . . . . . Retrieved Components 10 | . . . . . . . . 10 . . . . . . . . . . . . . . . . . . . . . . Parts Scanalyzed . | . . . . . . . . . . . . . . . . . . . . . . . . . . . . . . . Part Schematics Acquired . | . . . . . . . . . . . . . . . . . . . . . . . . . . . . . . . Parts Damaged . | . . . . . . . . . . . . . . . . . . . . . . . . . . . . . . . Bothacking | -11 -10 -10 -9 -8 -8 -8 -8 -7 -7 -7 -7 -6 -6 -6 -6 -6 -6 -5 -5 -4 -4 -4 -4 -3 -3 -3 -3 -2 -2 -2 ------------ Run | Scr Mat Min Mat Mat Gar Mat Gar Fac Gar Sto Gar Fac Was Fac Gar Fac Gar Fac Gar Fac Gar Fac Gar Res Gar Res Tes Res Qua Sec Used RIF Installer 10 | . . . . . 1 . 1 . 1 . 1 . . . 1 . 1 . 1 . 1 . 1 . 1 . . . . . Hotswap 1 | . . . . . . . . . . . . . . . . . . . 1 . . . . . . . . . . . Command Fork 2 | . . . . . . . 1 . . . . . . . 1 . . . . . . . . . . . . . . . Threat Obfuscator 1 | . . . . . . . . . 1 . . . . . . . . . . . . . . . . . . . . . Robot Detection 1 | . . . . . . . . . . . 1 . . . . . . . . . . . . . . . . . . . Patrol Navigation 1 | . . . . . . . . . . . . . . . . . . . . . 1 . . . . . . . . . Watcher Feeds 1 | . . . . . . . . . . . . . . . . . . . . . . . 1 . . . . . . . Alert ID Control 1 | . . . . . . . . . . . . . . . . . . . . . . . . . 1 . . . . . Program Shield 1 | . . . . . . . . . . . . . . . . . 1 . . . . . . . . . . . . . Robots Hacked 143 | . . . . . . . . 5 2 6 7 1 3 6 4 . 12 3 8 7 11 15 7 16 4 17 5 . . 4 Non-combat 30 | . . . . . . . . 2 . 2 . 1 . 4 . . . . . 5 . 3 . 3 . 7 1 . . 2 Combat 113 | . . . . . . . . 3 2 4 7 . 3 2 4 . 12 3 8 2 11 12 7 13 4 10 4 . . 2 Robot Hacks Applied 179 | . . . . . . . . 8 2 9 8 2 3 12 6 . 13 3 8 9 11 18 7 21 4 24 7 . . 4 parse_system 14 | . . . . . . . . 1 . 1 . . . 1 1 . 1 1 . . . 2 . 2 . 3 1 . . . no_distress 4 | . . . . . . . . . . 1 . . . 2 . . . . . 1 . . . . . . . . . . find_chute 1 | . . . . . . . . 1 . . . . . . . . . . . . . . . . . . . . . . ignore_repairs 1 | . . . . . . . . . . . . . . . . . . . . . . . . . . . 1 . . . map_walls 1 | . . . . . . . . . . . . . . . . . . . . . . . . 1 . . . . . . find_fabricator 1 | . . . . . . . . . . . . . . 1 . . . . . . . . . . . . . . . . drop_inventory 8 | . . . . . . . . . . . . 1 . 1 . . . . . 1 . . . . . 3 . . . 2 recall_reinforcements 2 | . . . . . . . . . . . . 1 . . . . . . . . . . . . . 1 . . . . locate_stockpiles 2 | . . . . . . . . . . . . . . 1 . . . . . . . . . . . 1 . . . . find_recycling 2 | . . . . . . . . . . . . . . 1 . . . . . 1 . . . . . . . . . . ignore_parts 1 | . . . . . . . . . . . . . . 1 . . . . . . . . . . . . . . . . purge_threat 13 | . . . . . . . . 2 . 2 . . . . . . . . . . . 2 . 2 . 5 . . . . locate_traps 1 | . . . . . . . . . . . . . . . . . . . . . . 1 . . . . . . . . reprogram_traps 1 | . . . . . . . . . . . . . . . . . . . . . . 1 . . . . . . . . block_reporting 1 | . . . . . . . . . . . . . . . . . . . . . . . . 1 . . . . . . summon_haulers 1 | . . . . . . . . . . . . . . . . . . . . . . 1 . . . . . . . . map_route 3 | . . . . . . . . . . . . . . . . . . . . 1 . . . . . 2 . . . . mark_security 1 | . . . . . . . . . . . . . . . . . . . . 1 . . . . . . . . . . disable_scanner 3 | . . . . . . . . . . . . . . . . . . . . . . . . . . . 1 . . 2 report_analyses 3 | . . . . . . . . . . . . . . . . . . . . . . . . . . . 3 . . . ignore_targets 3 | . . . . . . . . . . . . . 3 . . . . . . . . . . . . . . . . . find_garrison 4 | . . . . . . . . 1 . . . . . 1 . . . . . 1 . . . 1 . . . . . . link_fov 1 | . . . . . . . . . . 1 . . . . . . . . . . . . . . . . . . . . scatter_targeting 2 | . . . . . . . . . . . 2 . . . . . . . . . . . . . . . . . . . spike_heat 3 | . . . . . . . . . . . . . . . 1 . . . . 1 . . . . . 1 . . . . disable_weapons 1 | . . . . . . . . . . . . . . . 1 . . . . . . . . . . . . . . . go_dormant 1 | . . . . . . . . . . . . . . . . . . . . . . . . 1 . . . . . . overwrite_iff 11 | . . . . . . . . . 1 2 1 . . 3 1 . . . 1 . . . . . . 2 . . . . streamctrl_high 2 | . . . . . . . . . 1 . . . . . . . 1 . . . . . . . . . . . . . formatsys_high 87 | . . . . . . . . 3 . 2 5 . . . 2 . 11 2 7 2 11 11 7 13 4 6 1 . . . Relay Couplers Released 137 | . . . . . 5 . 8 . 10 . 9 . . . 12 . 17 . 13 . 19 4 18 . 17 2 2 . . 1 Machine Destruction 133 | . . . . . 5 . 8 . 10 . 9 . . . 12 . 17 . 13 . 19 . 18 . 17 2 2 . . 1 Programmers 4 | . . . . . . . . . . . . . . . . . . . . . . 4 . . . . . . . . Attached 61 | . . . . . . . . 3 1 3 4 1 . 2 3 1 12 2 3 3 7 4 1 3 3 3 2 . . . Robots Rewired 4 | . . . . . . . . . . . . . . . . . . . . . . . 4 . . . . . . . Allies Hacked 5 | . . . . . . . . . . . . . . 1 . . . . . . . . . 3 . . 1 . . . Hacks Repelled . | . . . . . . . . . . . . . . . . . . . . . . . . . . . . . . . Allies | -11 -10 -10 -9 -8 -8 -8 -8 -7 -7 -7 -7 -6 -6 -6 -6 -6 -6 -5 -5 -4 -4 -4 -4 -3 -3 -3 -3 -2 -2 -2 -------- Run | Scr Mat Min Mat Mat Gar Mat Gar Fac Gar Sto Gar Fac Was Fac Gar Fac Gar Fac Gar Fac Gar Fac Gar Res Gar Res Tes Res Qua Sec Total Allies 168 | . . . . . . 2 . 5 2 4 7 . 18 3 5 . 18 2 13 2 16 17 12 20 5 15 2 . . . Largest Group 18 | . . . . . . 2 2 3 1 1 3 1 18 5 2 . 11 8 10 1 7 8 6 9 3 4 2 . . . Highest-Rated Group 650 | . . . . . . 20 20 48 32 32 113 32 650 133 64 . 331 246 219 49 244 396 277 364 141 224 112 . . . Highest-Rated Ally 81 | . . . . . . 10 10 26 32 32 81 32 50 33 32 . 81 47 49 49 56 56 58 64 64 56 56 . . . Total Orders 7 | . . . . . . . 3 . . . 1 . . . . . . . . . . . 3 . . . . . . . STAY 5 | . . . . . . . 2 . . . 1 . . . . . . . . . . . 2 . . . . . . . FOLLOW 2 | . . . . . . . 1 . . . . . . . . . . . . . . . 1 . . . . . . . Ally Attacks 1134 | . . . . . . . . 10 10 19 44 3 160 59 23 . 73 37 87 5 52 119 41 186 13 162 31 . . . Total Damage 28271 | . . . . . . . . 152 302 579 898 97 3522 650 798 . 1396 744 1582 108 1251 4568 799 4230 497 4843 1255 . . . Kills 165 | . . . . . . . . . 5 6 6 1 6 3 5 . 11 3 14 . 13 20 3 27 1 31 10 . . . Allies Corrupted 5 | . . . . . . . . . . . . . . . . . . . . 1 . . . 1 . 3 . . . . Allies Melted 2 | . . . . . . . . . . . . . . . . . . . . . . 1 . . 1 . . . . . Intel | -11 -10 -10 -9 -8 -8 -8 -8 -7 -7 -7 -7 -6 -6 -6 -6 -6 -6 -5 -5 -4 -4 -4 -4 -3 -3 -3 -3 -2 -2 -2 ------- Run | Scr Mat Min Mat Mat Gar Mat Gar Fac Gar Sto Gar Fac Was Fac Gar Fac Gar Fac Gar Fac Gar Fac Gar Res Gar Res Tes Res Qua Sec Robot Analysis Total 2 | . 2 . . . . . . . . . . . . . . . . . . . . . . . . . . . . . Derelict Logs Recovered 1 | . . 1 . . . . . . . . . . . . . . . . . . . . . . . . . . . . Drone Launches . | . . . . . . . . . . . . . . . . . . . . . . . . . . . . . . . Drone Recoveries . | . . . . . . . . . . . . . . . . . . . . . . . . . . . . . . . Exploration | -11 -10 -10 -9 -8 -8 -8 -8 -7 -7 -7 -7 -6 -6 -6 -6 -6 -6 -5 -5 -4 -4 -4 -4 -3 -3 -3 -3 -2 -2 -2 ------------- Run | Scr Mat Min Mat Mat Gar Mat Gar Fac Gar Sto Gar Fac Was Fac Gar Fac Gar Fac Gar Fac Gar Fac Gar Res Gar Res Tes Res Qua Sec Turns Passed 38637 | 73 1458 795 2637 1221 1160 1108 1756 1287 1481 1090 1150 219 917 838 795 111 802 126 1123 1435 1408 1221 1297 1606 1402 3775 1474 524 1091 3257 Spaces Moved 17001 | 50 756 474 1061 453 408 432 772 553 441 358 455 84 465 461 390 66 427 62 543 687 695 601 601 769 611 1669 646 259 455 1297 Core 15 | 14 . . . . . . . . . . . . . . . . . . . . . . . . . . . . . 1 Treads 16965 | 36 735 474 1061 453 408 432 772 553 441 358 455 84 465 461 390 66 427 62 543 687 695 601 601 769 611 1669 646 259 455 1296 Legs 21 | . 21 . . . . . . . . . . . . . . . . . . . . . . . . . . . . . Wheels . | . . . . . . . . . . . . . . . . . . . . . . . . . . . . . . . Hover . | . . . . . . . . . . . . . . . . . . . . . . . . . . . . . . . Flight . | . . . . . . . . . . . . . . . . . . . . . . . . . . . . . . . Fastest Speed 50 | 50 150 160 160 200 200 200 200 185 197 180 200 180 160 160 160 160 160 180 180 180 180 160 180 180 160 145 152 152 158 155 Average Speed 180 | 129 159 160 190 200 200 200 200 200 204 201 200 180 171 160 160 160 160 180 180 180 180 177 180 180 179 168 168 158 183 178 Slowest Speed 1800 | 160 160 160 240 200 200 240 200 205 205 240 200 180 180 160 160 160 180 180 180 180 200 180 180 180 200 200 177 172 190 1800 Overloaded Moves . | . . . . . . . . . . . . . . . . . . . . . . . . . . . . . . . Propulsion Burnouts . | . . . . . . . . . . . . . . . . . . . . . . . . . . . . . . . Robots Hopped 3 | . . . . . . . . . . . . . . . . . . . . . . . . 3 . . . . . . Cave-ins Triggered 1 | . . . . . . . . . . . . . . . . . . . . . . . . . . 1 . . . . Teleports 6 | . . . . . . . . . . . . . . . . . . . . . . . . . . . . . . 6 Exploration Rate (%) 53 | 4 91 65 94 58 52 55 60 15 61 50 62 3 96 20 65 3 77 3 75 24 75 23 77 31 79 61 88 11 72 95 Regions Visited 30 Branch Regions 5 Pre-discovered Areas 1 | . 1 . . . . . . . . . . . . . . . . . . . . . . . . . . . . . Known Exits Taken 14 | . 1 . . 1 . 1 . 1 . 1 . . . 1 . 1 . 1 . 1 . 1 . 1 . 1 1 1 . . Unknown Exits Taken 4 | 1 . 1 1 . . . . . . . . . . . . . . . . . . . . . . . . . 1 . Scrap Searched 1 | . . 1 . . . . . . . . . . . . . . . . . . . . . . . . . . . . Spaces Dug 136 | . . . 7 16 . 63 . . . . 11 . . 1 . . . . . . 1 . 1 2 21 10 . . . 3 Terrain Destroyed 820 | . . . 61 16 5 108 . . 2 33 12 . . 1 8 . . . 6 21 5 2 21 28 52 282 57 24 37 39 Melee . | . . . . . . . . . . . . . . . . . . . . . . . . . . . . . . . Projectile 382 | . . . . . . . . . . . 1 . . 1 1 . . . 6 21 5 2 15 28 27 196 18 12 15 34 AOE 438 | . . . 61 16 5 108 . . 2 33 11 . . . 7 . . . . . . . 6 . 25 86 39 12 22 5 Terrain Rammed . | . . . . . . . . . . . . . . . . . . . . . . . . . . . . . . . Walls Destroyed . | . . . . . . . . . . . . . . . . . . . . . . . . . . . . . . . Machines Disabled . | . . . . . . . . . . . . . . . . . . . . . . . . . . . . . . . Actions | -11 -10 -10 -9 -8 -8 -8 -8 -7 -7 -7 -7 -6 -6 -6 -6 -6 -6 -5 -5 -4 -4 -4 -4 -3 -3 -3 -3 -2 -2 -2 --------- Run | Scr Mat Min Mat Mat Gar Mat Gar Fac Gar Sto Gar Fac Was Fac Gar Fac Gar Fac Gar Fac Gar Fac Gar Res Gar Res Tes Res Qua Sec Total 22364 | 57 898 510 1421 627 725 556 911 649 941 561 640 147 526 521 498 70 538 75 648 807 819 699 722 894 795 2214 942 335 628 1990 Wait 2088 | . 59 . 167 53 248 29 38 13 417 37 36 52 . 14 28 . 51 1 16 53 20 12 22 16 51 132 121 33 88 281 Move 16973 | 49 755 473 1060 453 407 432 771 553 440 357 454 84 464 461 389 66 426 62 542 686 694 600 600 763 610 1668 645 258 454 1297 Hop 3 | . . . . . . . . . . . . . . . . . . . . . . . . 3 . . . . . . Pick Up 332 | 2 13 11 18 11 12 3 14 1 11 12 20 . 8 1 13 . 14 3 9 1 19 5 11 14 13 35 18 2 12 26 Fast Attach 203 | 4 3 1 16 3 1 8 7 5 3 16 9 . 4 5 . . 3 . 6 2 4 4 1 3 14 32 15 7 3 24 Attach 228 | 2 3 3 8 2 11 2 8 8 4 10 13 3 . 1 6 1 12 4 5 5 5 4 1 5 12 26 20 3 11 30 Detach 42 | . . . . . 1 . . 4 1 . 2 . 1 . 1 . . . 1 . . . . . 3 3 11 1 5 8 Swap 214 | . 2 2 7 6 3 5 8 13 8 11 14 1 3 6 10 . . . 4 11 8 8 8 11 5 35 9 1 4 11 Drop 373 | . 6 11 12 10 13 11 20 10 8 13 25 1 12 3 6 1 11 2 13 4 12 14 3 9 14 52 34 5 7 31 Fire 1713 | . 57 1 129 85 21 63 37 31 41 98 62 5 34 27 44 1 20 3 31 42 31 43 57 67 60 222 68 25 38 270 Melee 15 | . . . . . . . . 9 2 . . . . . . . . . . . . . . . . . . . 4 . Ram 2 | . . . . . . . . . . . . . . . . . . . . . . . . . . 1 1 . . . Kick . | . . . . . . . . . . . . . . . . . . . . . . . . . . . . . . . Crush 59 | . . 8 4 4 . 3 . 1 . 5 . 1 . 2 . 1 . . . 3 2 5 . 3 . 7 . . . 10 Escape Stasis 106 | . . . . . 8 . 8 . 6 2 4 . . . . . . . 19 . 24 . 19 . 13 1 . . 2 . Rewire 13 | . . . . . . . . 1 . . 1 . . 1 1 . 1 . 2 . . 4 . . . . . . . 2 Trap . | . . . . . . . . . . . . . . . . . . . . . . . . . . . . . . . Miscellaneous . | . . . . . . . . . . . . . . . . . . . . . . . . . . . . . . . Route ------- -11/Scrapyard -10/Materials (discovered 5 exits: *Mat x3 / *Min x2) -10/Mines -9/Materials (discovered 4 exits: *Mat x3 / *Min) -8/Materials (discovered 3 exits: *Fac x2 / Gar) -8/Garrison (discovered 2 exits: *Mat x2) -8/Materials (discovered 3 exits: *Fac x2 / Gar) -8/Garrison (discovered 2 exits: *Fac x2) -7/Factory (discovered 3 exits: [*Fac x2] / Gar) -7/Garrison (discovered 3 exits: *Sto x3) -7/Storage -7/Garrison (discovered 2 exits: [*Fac x2]) -6/Factory -6/Waste -6/Factory -6/Garrison (discovered 2 exits: *Fac x2) -6/Factory -6/Garrison (discovered 3 exits: *Fac x3) -5/Factory -5/Garrison (discovered 3 exits: *Fac x3) -4/Factory (discovered 2 exits: *Res / Gar) -4/Garrison (discovered 3 exits: *Fac x3) -4/Factory -4/Garrison (discovered 3 exits: *Res x3) -3/Research (discovered 5 exits: *Res / Arm / Tes x2 / Gar) -3/Garrison (discovered 3 exits: *Res x3) -3/Research (discovered 5 exits: *Res x2 / Arm / *Tes x2) -3/Testing -2/Research (discovered 2 exits: *Qua x2) -2/Quarantine -2/Section 7 History --------- Turn | Location | Event 3 | -11/Scrapyard | Discovered new exit (range 16) 74 | -11/Scrapyard | Entered Materials 76 | -10/Materials | Discovered new exit (range 14) 306 | -10/Materials | Build established: Mutant 325 | -10/Materials | Discovered new exit (range 14) 618 | -10/Materials | Discovered new exit (range 16) 620 | -10/Materials | Identified exit to Mines 859 | -10/Materials | Lost 3 parts (1n2w) 961 | -10/Materials | Discovered new exit (range 9) 1033 | -10/Materials | Discovered new exit (range 14) 1532 | -10/Materials | Entered Mines 1556 | -10/Mines | Learned Materials emergency access door positions 1613 | -10/Mines | Met a Derelict who couldn't figure out how to use a Trap Extractor 1681 | -10/Mines | Received a Rocket Launcher from a helpful Derelict 1735 | -10/Mines | Met a Derelict shopkeep closing up shop 2312 | -10/Mines | Discovered new exit (range 10) 2327 | -10/Mines | Entered Materials 2327 | -9/Materials | Evolved 2 slots: Utility x2 2490 | -9/Materials | Discovered new exit (range 16) 3011 | -9/Materials | Repaired Reactive Plating 3700 | -9/Materials | Build established: Hauler-Mutant 3752 | -9/Materials | Discovered new exit (range 5) 4130 | -9/Materials | Discovered new exit (range 20) 4156 | -9/Materials | Identified exit to Mines 4192 | -9/Materials | Core integrity fell below 50% 4296 | -9/Materials | Repaired Reactive Plating 4903 | -9/Materials | Core integrity fell below 20% 4912 | -9/Materials | Discovered new exit (range 20) 4964 | -9/Materials | Entered another Materials area 4964 | -8/Materials | Evolved 2 slots: Utility x1, Weapon x1 5059 | -8/Materials | Repaired Deuterium Engine 5270 | -8/Materials | Build established: Hauler-Tank 5523 | -8/Materials | Discovered new exit (range 20) 5955 | -8/Materials | Discovered new exit (range 19) 6164 | -8/Materials | Garrison activated, responded to threat 6185 | -8/Materials | Identified exit to Garrison 6185 | -8/Materials | Entered Garrison 6195 | -8/Garrison | Installed Relay Interface Framework 6505 | -8/Garrison | Build established: Hauler-Skirmisher 6603 | -8/Garrison | Triggered checkpoint 6782 | -8/Garrison | Discovered new exit (range 15) 6926 | -8/Garrison | Triggered checkpoint 6945 | -8/Garrison | Build established: Hauler-Mutant 7042 | -8/Garrison | Discovered new exit (range 19) 7256 | -8/Garrison | Garrison Relay disabled 7345 | -8/Garrison | Entered Materials 7973 | -8/Materials | Discovered new exit (range 15) 8048 | -8/Materials | Build established: Hauler-Tank 8156 | -8/Materials | Discovered new exit (range 16) 8453 | -8/Materials | Identified exit to Garrison 8453 | -8/Materials | Entered Garrison 8453 | -8/Garrison | Accompanied by 2 allies 8463 | -8/Garrison | Expanded RIF knowledge: Command Fork 8884 | -8/Garrison | Triggered checkpoint 9006 | -8/Garrison | Triggered checkpoint 9173 | -8/Garrison | Discovered new exit (range 16) 9333 | -8/Garrison | Garrison Relay disabled 9498 | -8/Garrison | Triggered checkpoint 9627 | -8/Garrison | Discovered new exit (range 15) 9867 | -8/Garrison | Garrison Relay disabled 10209 | -8/Garrison | Entered Factory 10209 | -7/Factory | Accompanied by 1 ally 10209 | -7/Factory | Evolved 2 slots: Utility x2 10272 | -7/Factory | Build established: Bothacker-Mutant 10432 | -7/Factory | Discovered new exit (range 19) 10861 | -7/Factory | Discovered new exit (range 11) 11182 | -7/Factory | Build established: Bothacker-Skirmisher 11479 | -7/Factory | Identified exit to Garrison 11484 | -7/Factory | Garrison activated, responded to threat 11496 | -7/Factory | Entered Garrison 11556 | -7/Garrison | Triggered checkpoint 11592 | -7/Garrison | Triggered checkpoint 11656 | -7/Garrison | Triggered checkpoint 11870 | -7/Garrison | Discovered new exit (range 10) 11907 | -7/Garrison | Expanded RIF knowledge: Threat Obfuscation 12176 | -7/Garrison | Garrison Relay disabled 12354 | -7/Garrison | Discovered new exit (range 12) 12495 | -7/Garrison | Build established: Bothacker-Mutant 12520 | -7/Garrison | Triggered checkpoint 12590 | -7/Garrison | Discovered new exit (range 15) 12818 | -7/Garrison | Triggered checkpoint 12977 | -7/Garrison | Entered Storage 13394 | -7/Storage | Core integrity fell below 50% 13424 | -7/Storage | Lost 3 parts (1n1u1w) 13559 | -7/Storage | Destroyed 7 combat bots 13575 | -7/Storage | Lost 4 parts (1n2u1w) 13678 | -7/Storage | Found Prototype Launcher 13717 | -7/Storage | Found Prototype Launcher 13721 | -7/Storage | Identified Rocket Array (x2) 14034 | -7/Storage | Identified exit to Garrison 14067 | -7/Storage | Entered Garrison 14067 | -7/Garrison | Accompanied by 1 ally 14077 | -7/Garrison | Expanded RIF knowledge: Robot Detection 14126 | -7/Garrison | Triggered checkpoint 14167 | -7/Garrison | Garrison Relay disabled 14313 | -7/Garrison | Triggered checkpoint 14380 | -7/Garrison | Triggered checkpoint 14467 | -7/Garrison | Discovered new exit (range 16) 14738 | -7/Garrison | Discovered new exit (range 8) 14812 | -7/Garrison | Triggered checkpoint 14833 | -7/Garrison | Spotted B-75 Beast 14845 | -7/Garrison | Garrison Relay disabled 14910 | -7/Garrison | Destroyed B-75 Beast 15217 | -7/Garrison | Entered Factory 15217 | -6/Factory | Accompanied by 1 ally 15217 | -6/Factory | Evolved 2 slots: Propulsion x2 15424 | -6/Factory | Spotted B-75 Beast 15436 | -6/Factory | Sucked down chute 15436 | -6/Factory | Entered Waste 15451 | -6/Waste | Spotted C-40 Crusher 15518 | -6/Waste | Spotted C-40 Crusher 15541 | -6/Waste | Build established: Botlord-Mutant 15543 | -6/Waste | Spotted C-40 Crusher 15603 | -6/Waste | Discovered new exit (range 12) 15668 | -6/Waste | Spotted C-40 Crusher 15750 | -6/Waste | Warlord forces began an assault 15963 | -6/Waste | Found Damper Plating 16003 | -6/Waste | Allies destroyed C-40 Crusher 16019 | -6/Waste | Spotted C-40 Crusher 16023 | -6/Waste | Allies destroyed C-40 Crusher 16068 | -6/Waste | Allies destroyed C-40 Crusher 16076 | -6/Waste | Allies destroyed C-40 Crusher 16095 | -6/Waste | Found Damper Plating 16096 | -6/Waste | Spotted C-40 Crusher 16104 | -6/Waste | Allies destroyed C-40 Crusher 16247 | -6/Waste | Build established: Bothacker-Mutant 16353 | -6/Waste | Entered Factory 16353 | -6/Factory | Accompanied by 5 allies 17191 | -6/Factory | Identified exit to Garrison 17191 | -6/Factory | Entered Garrison 17199 | -6/Garrison | Expanded RIF knowledge: Command Fork 17300 | -6/Garrison | Triggered checkpoint 17323 | -6/Garrison | Garrison Relay disabled 17441 | -6/Garrison | Triggered checkpoint 17493 | -6/Garrison | Destroyed 13 combat bots 17581 | -6/Garrison | Discovered new exit (range 8) 17625 | -6/Garrison | Build established: Botlord-Mutant 17630 | -6/Garrison | Triggered checkpoint 17685 | -6/Garrison | Garrison Relay disabled 17840 | -6/Garrison | Discovered new exit (range 8) 17860 | -6/Garrison | Triggered checkpoint 17909 | -6/Garrison | Garrison Relay disabled 17986 | -6/Garrison | Entered Factory 18097 | -6/Factory | Identified exit to Garrison 18097 | -6/Factory | Entered Garrison 18105 | -6/Garrison | Expanded RIF knowledge: Program Shield 18148 | -6/Garrison | Triggered checkpoint 18181 | -6/Garrison | Garrison Relay disabled 18288 | -6/Garrison | Spotted B-75 Beast 18305 | -6/Garrison | Hijacked Beast 5a control node with streamctrl_high 18308 | -6/Garrison | Triggered checkpoint 18316 | -6/Garrison | Triggered checkpoint 18377 | -6/Garrison | Discovered new exit (range 10) 18406 | -6/Garrison | Triggered checkpoint 18420 | -6/Garrison | Garrison Relay disabled 18555 | -6/Garrison | Discovered new exit (range 9) 18574 | -6/Garrison | Triggered checkpoint 18624 | -6/Garrison | Garrison Relay disabled 18759 | -6/Garrison | Discovered new exit (range 9) 18788 | -6/Garrison | Triggered checkpoint 18813 | -6/Garrison | Garrison Relay disabled 18899 | -6/Garrison | Entered Factory 18899 | -5/Factory | Accompanied by 7 allies 18899 | -5/Factory | Evolved 2 slots: Utility x2 19000 | -5/Factory | Garrison activated, responded to threat 19024 | -5/Factory | Identified exit to Garrison 19025 | -5/Factory | Entered Garrison 19025 | -5/Garrison | Accompanied by 4 allies 19034 | -5/Garrison | Expanded RIF knowledge: Hotswap 19084 | -5/Garrison | Triggered checkpoint 19124 | -5/Garrison | Garrison Relay disabled 19202 | -5/Garrison | Spotted B-75 Beast 19210 | -5/Garrison | Triggered checkpoint 19214 | -5/Garrison | Triggered checkpoint 19216 | -5/Garrison | Allies destroyed B-75 Beast 19222 | -5/Garrison | Triggered checkpoint 19250 | -5/Garrison | Triggered checkpoint 19319 | -5/Garrison | Discovered new exit (range 10) 19370 | -5/Garrison | Triggered checkpoint 19389 | -5/Garrison | Garrison Relay disabled 19672 | -5/Garrison | Triggered checkpoint 19749 | -5/Garrison | Discovered new exit (range 9) 19820 | -5/Garrison | Spotted B-75 Beast 19826 | -5/Garrison | Allies destroyed B-75 Beast 19911 | -5/Garrison | Build established: Botlord-Tank 20030 | -5/Garrison | Triggered checkpoint 20080 | -5/Garrison | Garrison Relay disabled 20132 | -5/Garrison | Discovered new exit (range 10) 20148 | -5/Garrison | Entered Factory 20148 | -4/Factory | Evolved 2 slots: Utility x2 20942 | -4/Factory | Discovered new exit (range 7) 21306 | -4/Factory | Spotted B-86 Titan 21349 | -4/Factory | Identified exit to Garrison 21583 | -4/Factory | Entered Garrison 21646 | -4/Garrison | Triggered checkpoint 21671 | -4/Garrison | Garrison Relay disabled 21757 | -4/Garrison | Triggered checkpoint 21762 | -4/Garrison | Triggered checkpoint 21796 | -4/Garrison | Triggered checkpoint 21830 | -4/Garrison | Triggered checkpoint 21923 | -4/Garrison | Build established: Botlord-Mutant 21938 | -4/Garrison | Discovered new exit (range 12) 22082 | -4/Garrison | Discovered new exit (range 13) 22243 | -4/Garrison | Discovered new exit (range 10) 22268 | -4/Garrison | Expanded RIF knowledge: Watcher Feeds 22308 | -4/Garrison | Triggered checkpoint 22350 | -4/Garrison | Garrison Relay disabled 22514 | -4/Garrison | Triggered checkpoint 22553 | -4/Garrison | Garrison Relay disabled 22770 | -4/Garrison | Triggered checkpoint 22796 | -4/Garrison | Garrison Relay disabled 22838 | -4/Garrison | Triggered checkpoint 22991 | -4/Garrison | Entered Factory 22991 | -4/Factory | Accompanied by 3 allies 23009 | -4/Factory | Spotted B-86 Titan 23036 | -4/Factory | Destroyed B-86 Titan 23494 | -4/Factory | Spotted B-86 Titan 23516 | -4/Factory | Destroyed B-86 Titan 24195 | -4/Factory | Identified exit to Garrison 24212 | -4/Factory | Entered Garrison 24212 | -4/Garrison | Accompanied by 5 allies 24264 | -4/Garrison | Triggered checkpoint 24299 | -4/Garrison | Garrison Relay disabled 24560 | -4/Garrison | Triggered checkpoint 24608 | -4/Garrison | Triggered checkpoint 24612 | -4/Garrison | Triggered checkpoint 24663 | -4/Garrison | Destroyed 12 combat bots 24717 | -4/Garrison | Discovered new exit (range 14) 24751 | -4/Garrison | Expanded RIF knowledge: Patrol Navigation 24812 | -4/Garrison | Triggered checkpoint 24861 | -4/Garrison | Garrison Relay disabled 24992 | -4/Garrison | Discovered new exit (range 9) 25002 | -4/Garrison | Triggered checkpoint 25032 | -4/Garrison | Triggered checkpoint 25035 | -4/Garrison | Garrison Relay disabled 25218 | -4/Garrison | Triggered checkpoint 25310 | -4/Garrison | Triggered checkpoint 25329 | -4/Garrison | Garrison Relay disabled 25392 | -4/Garrison | Discovered new exit (range 12) 25509 | -4/Garrison | Entered Research 25509 | -3/Research | Accompanied by 5 allies 25509 | -3/Research | Evolved 2 slots: Power x1, Utility x1 25770 | -3/Research | Discovered new exit (range 7) 26185 | -3/Research | Identified exit to Research 26676 | -3/Research | Spotted B-86 Titan 26691 | -3/Research | Destroyed B-86 Titan 27023 | -3/Research | Identified exit to Armory 27023 | -3/Research | Identified exit to Testing 27072 | -3/Research | Garrison activated, responded to threat 27082 | -3/Research | Spotted B-86 Titan 27115 | -3/Research | Identified exit to Garrison 27115 | -3/Research | Entered Garrison 27220 | -3/Garrison | Triggered checkpoint 27240 | -3/Garrison | Garrison Relay disabled 27417 | -3/Garrison | Spotted B-86 Titan 27497 | -3/Garrison | Destroyed B-86 Titan 27550 | -3/Garrison | Lost 5 parts (1p1n2u1w) 27592 | -3/Garrison | Found Unknown Protection 27592 | -3/Garrison | Identified Hvy. Reflective Plating 27595 | -3/Garrison | Lost 3 parts (1p1u1w) 27764 | -3/Garrison | Discovered new exit (range 15) 27840 | -3/Garrison | Triggered checkpoint 27855 | -3/Garrison | Garrison Relay disabled 27925 | -3/Garrison | Build established: Botlord-Tank 27990 | -3/Garrison | Triggered checkpoint 28055 | -3/Garrison | Discovered new exit (range 9) 28124 | -3/Garrison | Triggered checkpoint 28157 | -3/Garrison | Garrison Relay disabled 28238 | -3/Garrison | Triggered checkpoint 28334 | -3/Garrison | Discovered new exit (range 14) 28369 | -3/Garrison | Expanded RIF knowledge: Alert ID Control 28422 | -3/Garrison | Triggered checkpoint 28457 | -3/Garrison | Garrison Relay disabled 28517 | -3/Garrison | Entered Research 28517 | -3/Research | Accompanied by 3 allies 28670 | -3/Research | Found Prototype Processor 28670 | -3/Research | Identified Exp. Melee Analysis Suite 28688 | -3/Research | Found Prototype Device 28688 | -3/Research | Identified EM Dispersion Field 28864 | -3/Research | Found Prototype Device 28864 | -3/Research | Identified Adv. Kinecellerator 28870 | -3/Research | Found Adv. Kinecellerator 28872 | -3/Research | Found Adv. Kinecellerator 29128 | -3/Research | Build established: Botlord-Gunner 29461 | -3/Research | Build established: Botlord-Mutant 29482 | -3/Research | Spotted B-86 Titan 29490 | -3/Research | Destroyed B-86 Titan 29802 | -3/Research | Lost 3 parts (1p1n1w) 30094 | -3/Research | Found Prototype Processor 30094 | -3/Research | Identified Exp. Signal Interpreter 30143 | -3/Research | Found Hvy. Insulated Plating 30216 | -3/Research | Build established: Botlord-Gunner 30375 | -3/Research | Discovered exit to Research (range 15) 30517 | -3/Research | First assault squad dispatched 30623 | -3/Research | Crushed by falling debris 30624 | -3/Research | System corruption reached 10% 30744 | -3/Research | Core integrity fell below 50% 30937 | -3/Research | Discovered exit to Research (range 32) 31532 | -3/Research | System corruption reached 30% 31925 | -3/Research | Spotted B-86 Titan 31960 | -3/Research | Destroyed B-86 Titan 32010 | -3/Research | Found Hvy. Reflective Plating 32051 | -3/Research | Build established: Scavenger-Gunner 32292 | -3/Research | Entered Testing 32337 | -3/Testing | Discovered exit to Research (range 41) 32689 | -3/Testing | Spotted Striker 32753 | -3/Testing | Found Prototype Hackware 32788 | -3/Testing | Build established: Scavenger-Mutant 33058 | -3/Testing | Found Prototype Energy Cannon 33060 | -3/Testing | Found Prototype Energy Cannon 33067 | -3/Testing | Identified Imp. Potential Cannon (x2) 33425 | -3/Testing | Identified System Mapper 33491 | -3/Testing | Found Prototype Ballistic Cannon 33563 | -3/Testing | Found Prototype Ballistic Gun 33660 | -3/Testing | Repaired Imp. Coolant Injector 33689 | -3/Testing | Repaired Hcp. Storage Unit 33766 | -3/Testing | Entered Research 33766 | -2/Research | Evolved 2 slots: Propulsion x1, Weapon x1 33890 | -2/Research | Identified exit to Quarantine 34265 | -2/Research | Found Prototype Slashing Weapon 34265 | -2/Research | Identified Molecular Scythe 34290 | -2/Research | Entered Quarantine 34312 | -2/Quarantine | Found Alien Artifact 34315 | -2/Quarantine | Found Alien Artifact 34318 | -2/Quarantine | Found Alien Artifact 34327 | -2/Quarantine | Found Alien Artifact 34336 | -2/Quarantine | Found Alien Artifact 34339 | -2/Quarantine | Found Alien Artifact 34342 | -2/Quarantine | Found Alien Artifact 34343 | -2/Quarantine | Identified Dimensional Node Initializer (x3) 34343 | -2/Quarantine | Initialized slip node 34552 | -2/Quarantine | Found Alien Artifact 34924 | -2/Quarantine | Garrison activated, responded to threat 35153 | -2/Quarantine | Build established: Hauler-Tank 35251 | -2/Quarantine | Spotted Fortress 35293 | -2/Quarantine | Lost 5 parts (1u4w) 35373 | -2/Quarantine | Discovered new exit (range 5) 35381 | -2/Quarantine | Entered Section 7 35399 | -2/Section 7 | Spotted S7 Guard 35427 | -2/Section 7 | Destroyed S7 Guard 35434 | -2/Section 7 | Found Prototype Protection 35434 | -2/Section 7 | Identified Hvy. Regenerative Plating 35473 | -2/Section 7 | Found Alien Artifact 35510 | -2/Section 7 | Found Alien Artifact 35525 | -2/Section 7 | Identified Omega Cannon 35654 | -2/Section 7 | Identified Transdimensional Reconstructor (x3) 35654 | -2/Section 7 | Identified Hpw. Transdimensional Reconstructor 35654 | -2/Section 7 | Identified Integrated Heat Negator 35654 | -2/Section 7 | Identified Core Reset Matrix 35683 | -2/Section 7 | Found Alien Artifact 35704 | -2/Section 7 | Identified Subatomic Replicator 35725 | -2/Section 7 | Build established: Scavenger-Mutant 35869 | -2/Section 7 | Found Alien Artifact 36005 | -2/Section 7 | Identified Integrated Dissipator 36029 | -2/Section 7 | Identified Integrated Reactor 36029 | -2/Section 7 | Identified Hyp. Multirail 36881 | -2/Section 7 | First assault squad dispatched 37144 | -2/Section 7 | Installed Integrated Heat Negator, increased core heat dissipation (+40) 37149 | -2/Section 7 | Installed Integrated Dissipator, increased core heat dissipation (+20) 37311 | -2/Section 7 | Spotted B-90 Cyclops 37320 | -2/Section 7 | Destroyed B-90 Cyclops 37480 | -2/Section 7 | Spotted Executioner 37485 | -2/Section 7 | Destroyed Executioner 37489 | -2/Section 7 | Spotted Executioner 37497 | -2/Section 7 | Destroyed Executioner 37587 | -2/Section 7 | Found Transdimensional Reconstructor 37591 | -2/Section 7 | Found Transdimensional Reconstructor 37628 | -2/Section 7 | Found Alien Artifact 37675 | -2/Section 7 | Spotted Striker 37675 | -2/Section 7 | Spotted Striker 37756 | -2/Section 7 | Found Alien Energy Gun 37760 | -2/Section 7 | Found Alien Energy Gun 37857 | -2/Section 7 | Spotted Executioner 37864 | -2/Section 7 | Spotted Executioner 37869 | -2/Section 7 | Destroyed Executioner 37881 | -2/Section 7 | Destroyed Executioner 37950 | -2/Section 7 | Identified Sigix Quantum Sheargun (x2) 38004 | -2/Section 7 | Found Sigix Quantum Sheargun 38072 | -2/Section 7 | System corruption reached 10% 38119 | -2/Section 7 | Found Sigix Quantum Sheargun 38301 | -2/Section 7 | Scanned by Researcher 38302 | -2/Section 7 | Intercept squad dispatched 38302 | -2/Section 7 | Warped through subspace 38389 | -2/Section 7 | Spotted B-99 Colossus 38417 | -2/Section 7 | Intercept squad dispatched 38434 | -2/Section 7 | Spotted Tracker 38436 | -2/Section 7 | Spotted Tracker 38436 | -2/Section 7 | Spotted Tracker 38439 | -2/Section 7 | Destroyed Tracker 38439 | -2/Section 7 | Destroyed Tracker 38442 | -2/Section 7 | Destroyed Tracker 38475 | -2/Section 7 | Spotted Combat Programmer 38477 | -2/Section 7 | Spotted Combat Programmer 38477 | -2/Section 7 | Spotted Combat Programmer 38481 | -2/Section 7 | Found Integrated Reactor 38481 | -2/Section 7 | Installed Integrated Reactor, increased core energy generation (+10) 38484 | -2/Section 7 | Found Integrated Reactor 38484 | -2/Section 7 | Installed Integrated Reactor, increased core energy generation (+10) 38488 | -2/Section 7 | Found Integrated Reactor 38488 | -2/Section 7 | Installed Integrated Reactor, increased core energy generation (+10) 38509 | -2/Section 7 | Warped through subspace 38510 | -2/Section 7 | Spotted Alpha 7 38510 | -2/Section 7 | Spotted Alpha 7 38510 | -2/Section 7 | Warped through subspace 38511 | -2/Section 7 | Core integrity fell below 50% 38511 | -2/Section 7 | Warped through subspace 38565 | -2/Section 7 | Found Alien Artifact 38576 | -2/Section 7 | Warped through subspace 38580 | -2/Section 7 | Lost 5 parts (1p2n1u1w) 38616 | -2/Section 7 | Warped through subspace 38619 | -2/Section 7 | Spotted Tracker 38624 | -2/Section 7 | Core integrity fell below 20% 38624 | -2/Section 7 | Identified Matter Drive 38631 | -2/Section 7 | Installed Integrated Reactor, increased core energy generation (+10) 38635 | -2/Section 7 | System corruption reached 30% 38638 | -2/Section 7 | Destroyed by Tracker with Immobilizer Last Messages --------------- 38631_ Machine disabled. 38632_ U-05 Engineer lays Concrete. 38633_ Penetrated by Slug. 38633_ Slug penetrates Earth. 38633_ K-01 Serf collects debris. 38634_ U-05 Engineer lays Concrete. 38634_ Penetrated by Slug. 38634_ Slug penetrates Earth. 38635_ K-01 Serf collects debris. 38635_ U-05 Engineer lays Concrete. 38636_ Penetrated by Slug. 38636_ Critical hit. 38636_ Matter Drive destroyed. 38636_ Slug penetrates Earth. 38636_ U-05 Engineer lays Concrete. 38636_ Imp. Weapon Cycler destroyed. 38636_ U-05 Engineer builds a Reinforced Barrier. 38637_ K-01 Serf collects debris. 38637_ U-05 Engineer builds a Wall. 38638_ SP%OJHNFK2WAX